[Event "Titled Tuesday Blitz June 6 Late 2023"]
[White "Rego, Pedro Filipe"]
[Black "Horvath, Dominik"]
[WhiteFideId "1904310"]
[BlackFideId "1642561"]
[WhiteElo "2193"]
[BlackElo "2407"]
[Result "1-0"]
[Round "1"]
[TimeControl "180+2"]
[Date "2023.06.07"]
[WhiteClock "0:00:10"]
[BlackClock "0:00:13"]
[Board "69"]

1. d4 {[%clk 0:02:59]}  Nf6 {[%clk 0:02:56]} 2. Bf4 {[%clk 0:02:58]}  d5 {[%clk 0:02:55]} 3. e3 {[%clk 0:02:55]}  c5 {[%clk 0:02:55]} 4. Nf3 {[%clk 0:02:54]}  Nc6 {[%clk 0:02:54]} 5. Nbd2 {[%clk 0:02:52]}  Nh5 {[%clk 0:02:45]} 6. Bg5 {[%clk 0:02:46]}  h6 {[%clk 0:02:40]} 7. Bh4 {[%clk 0:02:44]}  g5 {[%clk 0:02:40]} 8. Bg3 {[%clk 0:02:36]}  Nxg3 {[%clk 0:02:39]} 9. hxg3 {[%clk 0:02:37]}  Bg7 {[%clk 0:02:38]} 10. c3 {[%clk 0:02:33]}  Bf5 {[%clk 0:02:26]} 11. dxc5 {[%clk 0:02:30]}  a5 {[%clk 0:02:25]} 12. Nd4 {[%clk 0:02:26]}  Bg6 {[%clk 0:02:25]} 13. Bb5 {[%clk 0:02:23]}  O-O {[%clk 0:02:25]} 14. a4 {[%clk 0:02:17]}  Qc7 {[%clk 0:02:22]} 15. O-O {[%clk 0:02:14]}  Ne5 {[%clk 0:02:22]} 16. N2b3 {[%clk 0:02:09]}  Nc4 {[%clk 0:02:16]} 17. Qe2 {[%clk 0:02:04]}  e5 {[%clk 0:01:19]} 18. Nf3 {[%clk 0:01:45]}  e4 {[%clk 0:01:17]} 19. Nfd4 {[%clk 0:01:37]}  Ne5 {[%clk 0:01:17]} 20. f4 {[%clk 0:01:33]}  exf3 {[%clk 0:01:17]} 21. gxf3 {[%clk 0:01:31]}  b6 {[%clk 0:01:03]} 22. cxb6 {[%clk 0:01:15]}  Qxb6 {[%clk 0:01:04]} 23. f4 {[%clk 0:01:13]}  Nc4 {[%clk 0:01:02]} 24. f5 {[%clk 0:01:07]}  Bh7 {[%clk 0:01:02]} 25. Nd2 {[%clk 0:01:02]}  Nxd2 {[%clk 0:00:54]} 26. Qxd2 {[%clk 0:01:03]}  Be5 {[%clk 0:00:54]} 27. Kg2 {[%clk 0:00:57]}  Kg7 {[%clk 0:00:52]} 28. Rh1 {[%clk 0:00:37]}  Rh8 {[%clk 0:00:51]} 29. Raf1 {[%clk 0:00:36]}  Kf8 {[%clk 0:00:41]} 30. f6 {[%clk 0:00:31]}  Be4+ {[%clk 0:00:40]} 31. Kg1 {[%clk 0:00:30]}  Bxh1 {[%clk 0:00:39]} 32. Kxh1 {[%clk 0:00:31]}  Rd8 {[%clk 0:00:31]} 33. Qf2 {[%clk 0:00:31]}  Bxd4 {[%clk 0:00:29]} 34. exd4 {[%clk 0:00:29]}  Qe6 {[%clk 0:00:28]} 35. Re1 {[%clk 0:00:28]}  Qh3+ {[%clk 0:00:28]} 36. Qh2 {[%clk 0:00:28]}  Qf5 {[%clk 0:00:28]} 37. Qe2 {[%clk 0:00:25]}  Qxf6 {[%clk 0:00:28]} 38. Qe5 {[%clk 0:00:25]}  Qxe5 {[%clk 0:00:22]} 39. Rxe5 {[%clk 0:00:26]}  Kg7 {[%clk 0:00:21]} 40. Kg2 {[%clk 0:00:26]}  Kf6 {[%clk 0:00:21]} 41. g4 {[%clk 0:00:25]}  h5 {[%clk 0:00:21]} 42. gxh5 {[%clk 0:00:25]}  Rxh5 {[%clk 0:00:22]} 43. Kg3 {[%clk 0:00:24]}  Kg6 {[%clk 0:00:17]} 44. Bd3+ {[%clk 0:00:22]}  Kg7 {[%clk 0:00:17]} 45. Bb5 {[%clk 0:00:22]}  f6 {[%clk 0:00:16]} 46. Re7+ {[%clk 0:00:20]}  Kf8 {[%clk 0:00:16]} 47. Ra7 {[%clk 0:00:17]}  f5 {[%clk 0:00:16]} 48. Rxa5 {[%clk 0:00:16]}  Rd6 {[%clk 0:00:16]} 49. Ra8+ {[%clk 0:00:16]}  Kg7 {[%clk 0:00:17]} 50. Re8 {[%clk 0:00:16]}  Rf6 {[%clk 0:00:16]} 51. Re5 {[%clk 0:00:15]}  f4+ {[%clk 0:00:17]} 52. Kg4 {[%clk 0:00:15]}  Rh4+ {[%clk 0:00:17]} 53. Kxg5 {[%clk 0:00:16]}  Rh8 {[%clk 0:00:14]} 54. Re7+ {[%clk 0:00:16]}  Rf7 {[%clk 0:00:13]} 55. Rxf7+ {[%clk 0:00:16]}  Kxf7 {[%clk 0:00:14]} 56. Kxf4 {[%clk 0:00:17]}  Rh2 {[%clk 0:00:15]} 57. b4 {[%clk 0:00:16]}  Ke6 {[%clk 0:00:15]} 58. a5 {[%clk 0:00:16]}  Rc2 {[%clk 0:00:15]} 59. a6 {[%clk 0:00:16]}  Rxc3 {[%clk 0:00:15]} 60. Be2 {[%clk 0:00:10]}  Ra3 {[%clk 0:00:16]} 61. b5 {[%clk 0:00:11]}  Ra4 {[%clk 0:00:16]} 62. b6 {[%clk 0:00:10]}  Rxd4+ {[%clk 0:00:16]} 63. Kf3 {[%clk 0:00:10]}  Rb4 {[%clk 0:00:15]} 64. a7 {[%clk 0:00:10]}  Ra4 {[%clk 0:00:13]} 65. b7 {[%clk 0:00:10]} 1-0


[Site "https://www.chess.com"]

[Event "Titled Tuesday Blitz June 6 Late 2023"]
[White "Herman, Daniel"]
[Black "Simonian, Hrair"]
[WhiteFideId "30935008"]
[BlackFideId "13302337"]
[WhiteElo "1897"]
[BlackElo "2447"]
[Result "0-1"]
[Round "1"]
[TimeControl "180+2"]
[Date "2023.06.07"]
[WhiteClock "0:00:07"]
[BlackClock "0:00:09"]
[Board "71"]

1. c4 {[%clk 0:03:00]}  e5 {[%clk 0:02:57]} 2. g3 {[%clk 0:02:59]}  Nc6 {[%clk 0:02:55]} 3. Bg2 {[%clk 0:02:59]}  Nf6 {[%clk 0:02:54]} 4. Nc3 {[%clk 0:02:58]}  Bb4 {[%clk 0:02:52]} 5. Nd5 {[%clk 0:02:58]}  Bc5 {[%clk 0:02:51]} 6. e3 {[%clk 0:02:50]}  O-O {[%clk 0:02:40]} 7. Ne2 {[%clk 0:02:46]}  Nxd5 {[%clk 0:02:34]} 8. cxd5 {[%clk 0:02:46]}  Ne7 {[%clk 0:02:33]} 9. d4 {[%clk 0:02:27]}  Bb4+ {[%clk 0:02:32]} 10. Bd2 {[%clk 0:02:27]}  Bxd2+ {[%clk 0:02:31]} 11. Qxd2 {[%clk 0:02:28]}  Ng6 {[%clk 0:01:58]} 12. dxe5 {[%clk 0:02:04]}  Nxe5 {[%clk 0:01:59]} 13. O-O {[%clk 0:02:04]}  d6 {[%clk 0:01:59]} 14. Rac1 {[%clk 0:02:02]}  Bh3 {[%clk 0:01:57]} 15. Qc3 {[%clk 0:01:33]}  Bxg2 {[%clk 0:01:46]} 16. Kxg2 {[%clk 0:01:34]}  c5 {[%clk 0:01:34]} 17. dxc6 {[%clk 0:01:31]}  Nxc6 {[%clk 0:01:29]} 18. Rfd1 {[%clk 0:01:30]}  Qe7 {[%clk 0:01:28]} 19. Qc4 {[%clk 0:01:26]}  Rfd8 {[%clk 0:01:21]} 20. Nf4 {[%clk 0:01:26]}  h6 {[%clk 0:01:16]} 21. Nd5 {[%clk 0:01:25]}  Qe5 {[%clk 0:01:08]} 22. b4 {[%clk 0:01:17]}  a6 {[%clk 0:00:58]} 23. a4 {[%clk 0:01:14]}  Ne7 {[%clk 0:00:34]} 24. Nxe7+ {[%clk 0:00:58]}  Qxe7 {[%clk 0:00:29]} 25. Qd5 {[%clk 0:00:59]}  Rd7 {[%clk 0:00:27]} 26. Rd4 {[%clk 0:00:48]}  Rad8 {[%clk 0:00:25]} 27. b5 {[%clk 0:00:40]}  axb5 {[%clk 0:00:24]} 28. axb5 {[%clk 0:00:40]}  g6 {[%clk 0:00:24]} 29. b6 {[%clk 0:00:37]}  h5 {[%clk 0:00:23]} 30. Rdc4 {[%clk 0:00:33]}  Qe5 {[%clk 0:00:21]} 31. Qxe5 {[%clk 0:00:24]}  dxe5 {[%clk 0:00:22]} 32. Rc7 {[%clk 0:00:24]}  Kf8 {[%clk 0:00:21]} 33. R1c5 {[%clk 0:00:18]}  f6 {[%clk 0:00:20]} 34. Kf3 {[%clk 0:00:16]}  Ke7 {[%clk 0:00:20]} 35. Ke4 {[%clk 0:00:16]}  Ke6 {[%clk 0:00:19]} 36. h4 {[%clk 0:00:13]}  f5+ {[%clk 0:00:18]} 37. Kf3 {[%clk 0:00:14]}  Rxc7 {[%clk 0:00:09]} 38. Rxc7 {[%clk 0:00:11]}  Rd7 {[%clk 0:00:09]} 39. Rc8 {[%clk 0:00:09]}  e4+ {[%clk 0:00:07]} 40. Kf4 {[%clk 0:00:08]}  Rd6 {[%clk 0:00:08]} 41. Kg5 {[%clk 0:00:06]}  Kd5 {[%clk 0:00:07]} 42. Rg8 {[%clk 0:00:04]}  Rxb6 {[%clk 0:00:06]} 43. Rxg6 {[%clk 0:00:01]}  Rxg6+ {[%clk 0:00:07]} 44. Kxg6 {[%clk 0:00:02]}  b5 {[%clk 0:00:07]} 45. Kxf5 {[%clk 0:00:03]}  b4 {[%clk 0:00:08]} 46. g4 {[%clk 0:00:03]}  b3 {[%clk 0:00:09]} 47. gxh5 {[%clk 0:00:04]}  b2 {[%clk 0:00:10]} 48. h6 {[%clk 0:00:04]}  b1=Q {[%clk 0:00:11]} 49. Kg6 {[%clk 0:00:05]}  Qb8 {[%clk 0:00:11]} 50. Kg7 {[%clk 0:00:04]}  Qe5+ {[%clk 0:00:10]} 51. Kg6 {[%clk 0:00:04]}  Qh8 {[%clk 0:00:08]} 52. h5 {[%clk 0:00:04]}  Ke6 {[%clk 0:00:09]} 53. Kg5 {[%clk 0:00:04]}  Qh7 {[%clk 0:00:08]} 54. Kf4 {[%clk 0:00:04]}  Qxh6+ {[%clk 0:00:08]} 55. Kxe4 {[%clk 0:00:04]}  Qxh5 {[%clk 0:00:08]} 56. f4 {[%clk 0:00:05]}  Qf5+ {[%clk 0:00:08]} 57. Kf3 {[%clk 0:00:05]}  Qd5+ {[%clk 0:00:08]} 58. Kg3 {[%clk 0:00:06]}  Kf6 {[%clk 0:00:08]} 59. Kg4 {[%clk 0:00:06]}  Qe4 {[%clk 0:00:08]} 60. Kg3 {[%clk 0:00:06]}  Kf5 {[%clk 0:00:08]} 61. Kh4 {[%clk 0:00:07]}  Qxe3 {[%clk 0:00:09]} 62. Kh5 {[%clk 0:00:07]}  Qh3# {[%clk 0:00:09]} 0-1


[Site "https://www.chess.com"]

[Event "Titled Tuesday Blitz June 6 Late 2023"]
[White "Daggupati, Balaji"]
[Black "Kaplan, Avi Harrison"]
[WhiteFideId "2090759"]
[BlackFideId "30934559"]
[WhiteElo "2726"]
[BlackElo "1983"]
[Result "0-1"]
[Round "1"]
[TimeControl "180+2"]
[Date "2023.06.07"]
[WhiteClock "0:00:20"]
[BlackClock "0:01:09"]
[Board "72"]

1. e4 {[%clk 0:03:00]}  b6 {[%clk 0:02:53]} 2. d4 {[%clk 0:02:59]}  Bb7 {[%clk 0:02:52]} 3. Nc3 {[%clk 0:03:00]}  e6 {[%clk 0:02:40]} 4. Bd3 {[%clk 0:02:59]}  f5 {[%clk 0:02:40]} 5. exf5 {[%clk 0:02:53]}  Bxg2 {[%clk 0:02:40]} 6. Qh5+ {[%clk 0:02:53]}  g6 {[%clk 0:02:38]} 7. fxg6 {[%clk 0:02:53]}  Bg7 {[%clk 0:02:38]} 8. gxh7+ {[%clk 0:02:05]}  Kf8 {[%clk 0:02:38]} 9. hxg8=Q+ {[%clk 0:02:04]}  Kxg8 {[%clk 0:02:39]} 10. Qg4 {[%clk 0:01:45]}  Bxh1 {[%clk 0:02:38]} 11. Bg5 {[%clk 0:01:45]}  Qf8 {[%clk 0:02:32]} 12. O-O-O {[%clk 0:01:44]}  Nc6 {[%clk 0:02:28]} 13. f3 {[%clk 0:01:39]}  Qf7 {[%clk 0:02:02]} 14. h4 {[%clk 0:01:37]}  Nxd4 {[%clk 0:01:56]} 15. Qh3 {[%clk 0:00:56]}  Bxf3 {[%clk 0:01:39]} 16. Rf1 {[%clk 0:00:55]}  Rf8 {[%clk 0:01:38]} 17. Be4 {[%clk 0:00:50]}  Qh5 {[%clk 0:01:29]} 18. Nxf3 {[%clk 0:00:50]}  Nxf3 {[%clk 0:01:27]} 19. Be3 {[%clk 0:00:20]}  Ne5 {[%clk 0:01:17]} 20. Rxf8+ {[%clk 0:00:20]}  Kxf8 {[%clk 0:01:15]} 21. Qf1+ {[%clk 0:00:20]}  Qf7 {[%clk 0:01:14]} 22. Qe1 {[%clk 0:00:20]}  Bh6 {[%clk 0:01:09]} 23. Nb5 {[%clk 0:00:20]}  Bxe3+ {[%clk 0:01:09]} 24. Qxe3 {[%clk 0:00:20]}  Qf1+ {[%clk 0:01:09]} 25. Kd2 {[%clk 0:00:20]}  Nc4+ {[%clk 0:01:09]} 0-1


[Site "https://www.chess.com"]

[Event "Titled Tuesday Blitz June 6 Late 2023"]
[White "Principe, Alexander"]
[Black "Do Valle Cardoso, Lucas"]
[WhiteFideId "3804542"]
[BlackFideId "2163144"]
[WhiteElo "2203"]
[BlackElo "2364"]
[Result "1-0"]
[Round "1"]
[TimeControl "180+2"]
[Date "2023.06.07"]
[WhiteClock "0:00:06"]
[BlackClock "0:00:02"]
[Board "73"]

1. e4 {[%clk 0:03:00]}  c5 {[%clk 0:02:59]} 2. Nf3 {[%clk 0:03:00]}  d6 {[%clk 0:02:59]} 3. d4 {[%clk 0:03:01]}  cxd4 {[%clk 0:03:00]} 4. Nxd4 {[%clk 0:03:01]}  Nf6 {[%clk 0:03:01]} 5. Nc3 {[%clk 0:03:02]}  a6 {[%clk 0:03:00]} 6. Bg5 {[%clk 0:03:02]}  e6 {[%clk 0:02:56]} 7. f4 {[%clk 0:03:02]}  Be7 {[%clk 0:02:54]} 8. Qf3 {[%clk 0:03:00]}  Qc7 {[%clk 0:02:54]} 9. O-O-O {[%clk 0:03:01]}  Nbd7 {[%clk 0:02:52]} 10. Bd3 {[%clk 0:03:01]}  b5 {[%clk 0:02:46]} 11. Rhe1 {[%clk 0:03:00]}  Bb7 {[%clk 0:02:43]} 12. Nd5 {[%clk 0:02:59]}  exd5 {[%clk 0:02:36]} 13. Nf5 {[%clk 0:02:59]}  Bf8 {[%clk 0:02:01]} 14. e5 {[%clk 0:02:39]}  dxe5 {[%clk 0:02:00]} 15. fxe5 {[%clk 0:02:39]}  Ne4 {[%clk 0:01:47]} 16. Bxe4 {[%clk 0:01:56]}  dxe4 {[%clk 0:01:45]} 17. Nd6+ {[%clk 0:01:56]}  Bxd6 {[%clk 0:01:39]} 18. exd6 {[%clk 0:01:57]}  Qc6 {[%clk 0:01:32]} 19. Qg3 {[%clk 0:01:25]}  Rc8 {[%clk 0:01:01]} 20. Rd2 {[%clk 0:01:21]}  f6 {[%clk 0:00:55]} 21. Bh6 {[%clk 0:01:19]}  Rg8 {[%clk 0:00:17]} 22. Qh3 {[%clk 0:00:50]}  Kf7 {[%clk 0:00:14]} 23. Bf4 {[%clk 0:00:48]}  Rce8 {[%clk 0:00:11]} 24. Qxh7 {[%clk 0:00:46]}  Qc5 {[%clk 0:00:07]} 25. Qh3 {[%clk 0:00:42]}  Bc6 {[%clk 0:00:07]} 26. Re3 {[%clk 0:00:38]}  Rh8 {[%clk 0:00:06]} 27. Qg3 {[%clk 0:00:35]}  Qf5 {[%clk 0:00:06]} 28. Rf2 {[%clk 0:00:33]}  Qe6 {[%clk 0:00:05]} 29. h4 {[%clk 0:00:32]}  Kg8 {[%clk 0:00:05]} 30. b3 {[%clk 0:00:30]}  Qd5 {[%clk 0:00:03]} 31. Rd2 {[%clk 0:00:26]}  Qh5 {[%clk 0:00:04]} 32. Rc3 {[%clk 0:00:26]}  Rc8 {[%clk 0:00:03]} 33. Qe3 {[%clk 0:00:16]}  Qxh4 {[%clk 0:00:03]} 34. g3 {[%clk 0:00:16]}  Qg4 {[%clk 0:00:03]} 35. Kb2 {[%clk 0:00:15]}  Qe6 {[%clk 0:00:03]} 36. Qa7 {[%clk 0:00:14]}  Kf7 {[%clk 0:00:04]} 37. Qxa6 {[%clk 0:00:14]}  Bd5 {[%clk 0:00:02]} 38. Rxc8 {[%clk 0:00:14]}  Rxc8 {[%clk 0:00:01]} 39. Qxc8 {[%clk 0:00:15]}  g5 {[%clk 0:00:02]} 40. Be3 {[%clk 0:00:14]}  Qxd6 {[%clk 0:00:03]} 41. Qc3 {[%clk 0:00:10]}  Qe6 {[%clk 0:00:02]} 42. Qd4 {[%clk 0:00:10]}  Bc6 {[%clk 0:00:03]} 43. a3 {[%clk 0:00:07]}  Ne5 {[%clk 0:00:03]} 44. Qb6 {[%clk 0:00:06]}  Nf3 {[%clk 0:00:03]} 45. Rd1 {[%clk 0:00:06]}  Kg6 {[%clk 0:00:02]} 46. Qc5 {[%clk 0:00:06]}  f5 {[%clk 0:00:02]} 47. Rd6 {[%clk 0:00:06]} 1-0


[Site "https://www.chess.com"]

[Event "Titled Tuesday Blitz June 6 Late 2023"]
[White "Pulpan, Jakub"]
[Black "Kozelov, Roman"]
[WhiteFideId "302759"]
[BlackFideId "14133377"]
[WhiteElo "2484"]
[BlackElo "2149"]
[Result "1-0"]
[Round "1"]
[TimeControl "180+2"]
[Date "2023.06.07"]
[WhiteClock "0:00:05"]
[BlackClock "0:00:18"]
[Board "74"]

1. Nf3 {[%clk 0:02:45]}  Nf6 {[%clk 0:02:57]} 2. b3 {[%clk 0:02:45]}  b5 {[%clk 0:02:56]} 3. e4 {[%clk 0:02:42]}  Nxe4 {[%clk 0:02:55]} 4. Bxb5 {[%clk 0:02:42]}  Bb7 {[%clk 0:02:54]} 5. O-O {[%clk 0:02:42]}  e6 {[%clk 0:02:52]} 6. Bb2 {[%clk 0:02:38]}  Be7 {[%clk 0:02:51]} 7. Bxg7 {[%clk 0:02:31]}  Rg8 {[%clk 0:02:49]} 8. Bb2 {[%clk 0:02:32]}  Ng5 {[%clk 0:02:32]} 9. Be2 {[%clk 0:02:18]}  Nh3+ {[%clk 0:02:30]} 10. Kh1 {[%clk 0:02:18]}  Nf4 {[%clk 0:02:30]} 11. Rg1 {[%clk 0:01:58]}  Bf6 {[%clk 0:02:12]} 12. d4 {[%clk 0:01:56]}  Nc6 {[%clk 0:01:56]} 13. Nbd2 {[%clk 0:01:39]}  Qe7 {[%clk 0:01:51]} 14. Ne4 {[%clk 0:01:32]}  Nb4 {[%clk 0:01:32]} 15. Nc5 {[%clk 0:01:16]}  Bc6 {[%clk 0:01:27]} 16. Qd2 {[%clk 0:00:30]}  Nxe2 {[%clk 0:01:26]} 17. Qxe2 {[%clk 0:00:31]}  Nd5 {[%clk 0:01:25]} 18. Nd3 {[%clk 0:00:15]}  O-O-O {[%clk 0:01:14]} 19. c4 {[%clk 0:00:13]}  Nb4 {[%clk 0:01:12]} 20. Ba3 {[%clk 0:00:11]}  a5 {[%clk 0:01:01]} 21. Bxb4 {[%clk 0:00:12]}  axb4 {[%clk 0:01:01]} 22. c5 {[%clk 0:00:05]}  d6 {[%clk 0:00:43]} 23. Nxb4 {[%clk 0:00:05]}  Bxf3 {[%clk 0:00:29]} 24. gxf3 {[%clk 0:00:05]}  Bxd4 {[%clk 0:00:17]} 25. Qa6+ {[%clk 0:00:05]}  Kb8 {[%clk 0:00:18]} 26. Nc6# {[%clk 0:00:05]} 1-0


[Site "https://www.chess.com"]

[Event "Titled Tuesday Blitz June 6 Late 2023"]
[White "Kujawski, Adam"]
[Black "benny_aizenberg"]
[WhiteFideId "1100920"]
[WhiteElo "2054"]
[BlackElo "2720"]
[Result "0-1"]
[Round "1"]
[TimeControl "180+2"]
[Date "2023.06.07"]
[WhiteClock "0:00:04"]
[BlackClock "0:00:16"]
[Board "75"]

1. e4 {[%clk 0:02:54]}  e6 {[%clk 0:02:59]} 2. d4 {[%clk 0:02:50]}  d5 {[%clk 0:02:59]} 3. Nc3 {[%clk 0:02:50]}  Bb4 {[%clk 0:02:57]} 4. e5 {[%clk 0:02:20]}  c5 {[%clk 0:02:55]} 5. a3 {[%clk 0:02:20]}  Bxc3+ {[%clk 0:02:55]} 6. bxc3 {[%clk 0:02:21]}  Ne7 {[%clk 0:02:55]} 7. Qg4 {[%clk 0:02:17]}  Qc7 {[%clk 0:02:53]} 8. Qxg7 {[%clk 0:02:17]}  Rg8 {[%clk 0:02:53]} 9. Qxh7 {[%clk 0:02:18]}  cxd4 {[%clk 0:02:53]} 10. Ne2 {[%clk 0:02:18]}  Nbc6 {[%clk 0:02:52]} 11. f4 {[%clk 0:02:18]}  dxc3 {[%clk 0:02:51]} 12. Qd3 {[%clk 0:02:18]}  d4 {[%clk 0:02:52]} 13. Ng3 {[%clk 0:02:18]}  Bd7 {[%clk 0:02:35]} 14. Be2 {[%clk 0:02:18]}  O-O-O {[%clk 0:02:33]} 15. O-O {[%clk 0:02:17]}  Rh8 {[%clk 0:01:58]} 16. Rb1 {[%clk 0:02:16]}  Rdg8 {[%clk 0:01:56]} 17. a4 {[%clk 0:02:11]}  Nd5 {[%clk 0:01:52]} 18. Ba3 {[%clk 0:02:03]}  Ne3 {[%clk 0:01:46]} 19. Bd6 {[%clk 0:02:01]}  Qa5 {[%clk 0:01:41]} 20. Rb5 {[%clk 0:00:38]}  Qxa4 {[%clk 0:01:39]} 21. Rfb1 {[%clk 0:00:38]}  b6 {[%clk 0:01:25]} 22. Bf3 {[%clk 0:00:15]}  Qxc2 {[%clk 0:01:16]} 23. Rxb6 {[%clk 0:00:14]}  axb6 {[%clk 0:01:00]} 24. Qa6+ {[%clk 0:00:13]}  Kd8 {[%clk 0:00:59]} 25. Qxb6+ {[%clk 0:00:05]}  Ke8 {[%clk 0:00:58]} 26. Bxc6 {[%clk 0:00:04]}  f5 {[%clk 0:00:27]} 27. Bxd7+ {[%clk 0:00:04]}  Kf7 {[%clk 0:00:27]} 28. Bxe6+ {[%clk 0:00:04]}  Kg6 {[%clk 0:00:16]} 0-1


[Site "https://www.chess.com"]

[Event "Titled Tuesday Blitz June 6 Late 2023"]
[White "Gritsenko, Nikolai"]
[Black "Moore, Nicholas"]
[WhiteFideId "14112493"]
[BlackFideId "4303709"]
[WhiteElo "2389"]
[BlackElo "2428"]
[Result "1-0"]
[Round "1"]
[TimeControl "180+2"]
[Date "2023.06.07"]
[WhiteClock "0:00:04"]
[BlackClock "0:00:03"]
[Board "76"]

1. b3 {[%clk 0:02:50]}  d5 {[%clk 0:02:59]} 2. Bb2 {[%clk 0:02:50]}  Nf6 {[%clk 0:02:58]} 3. Nf3 {[%clk 0:02:50]}  Bf5 {[%clk 0:02:58]} 4. e3 {[%clk 0:02:50]}  e6 {[%clk 0:02:58]} 5. h3 {[%clk 0:02:49]}  Be7 {[%clk 0:02:58]} 6. c4 {[%clk 0:02:49]}  c6 {[%clk 0:02:57]} 7. Nc3 {[%clk 0:02:49]}  O-O {[%clk 0:02:57]} 8. g4 {[%clk 0:02:49]}  Bg6 {[%clk 0:02:54]} 9. Nh4 {[%clk 0:02:49]}  Be4 {[%clk 0:02:36]} 10. Nxe4 {[%clk 0:02:47]}  dxe4 {[%clk 0:02:29]} 11. Ng2 {[%clk 0:02:39]}  Nbd7 {[%clk 0:02:15]} 12. Qc2 {[%clk 0:02:30]}  Nc5 {[%clk 0:02:14]} 13. g5 {[%clk 0:02:24]}  Ne8 {[%clk 0:02:05]} 14. h4 {[%clk 0:02:20]}  a5 {[%clk 0:01:59]} 15. Bd4 {[%clk 0:02:09]}  f5 {[%clk 0:01:50]} 16. Nf4 {[%clk 0:01:57]}  Nc7 {[%clk 0:01:34]} 17. Qb2 {[%clk 0:01:49]}  Rf7 {[%clk 0:01:32]} 18. Rg1 {[%clk 0:01:43]}  a4 {[%clk 0:01:01]} 19. b4 {[%clk 0:01:41]}  a3 {[%clk 0:00:49]} 20. Qc3 {[%clk 0:01:37]}  Na4 {[%clk 0:00:46]} 21. Qb3 {[%clk 0:01:37]}  c5 {[%clk 0:00:41]} 22. bxc5 {[%clk 0:01:31]}  Bxc5 {[%clk 0:00:40]} 23. Bxc5 {[%clk 0:01:18]}  Nxc5 {[%clk 0:00:40]} 24. Qb4 {[%clk 0:01:14]}  Qd6 {[%clk 0:00:34]} 25. g6 {[%clk 0:01:03]}  hxg6 {[%clk 0:00:23]} 26. Rxg6 {[%clk 0:01:02]}  Rf6 {[%clk 0:00:20]} 27. Rxf6 {[%clk 0:00:52]}  gxf6 {[%clk 0:00:20]} 28. Qc3 {[%clk 0:00:44]}  e5 {[%clk 0:00:20]} 29. Nd5 {[%clk 0:00:41]}  Nxd5 {[%clk 0:00:20]} 30. cxd5 {[%clk 0:00:41]}  b6 {[%clk 0:00:21]} 31. Bc4 {[%clk 0:00:33]}  Kg7 {[%clk 0:00:21]} 32. Ke2 {[%clk 0:00:32]}  Rh8 {[%clk 0:00:21]} 33. Rg1+ {[%clk 0:00:32]}  Kf8 {[%clk 0:00:22]} 34. Qxa3 {[%clk 0:00:31]}  Qd8 {[%clk 0:00:17]} 35. Qa7 {[%clk 0:00:27]}  Nd7 {[%clk 0:00:17]} 36. d6 {[%clk 0:00:23]}  f4 {[%clk 0:00:13]} 37. Qc7 {[%clk 0:00:19]}  Qe8 {[%clk 0:00:06]} 38. Bb5 {[%clk 0:00:16]}  Rh7 {[%clk 0:00:06]} 39. Qc6 {[%clk 0:00:13]}  f3+ {[%clk 0:00:06]} 40. Kd1 {[%clk 0:00:12]}  f5 {[%clk 0:00:06]} 41. Qd5 {[%clk 0:00:10]}  Rg7 {[%clk 0:00:05]} 42. Rxg7 {[%clk 0:00:08]}  Kxg7 {[%clk 0:00:06]} 43. Qc6 {[%clk 0:00:07]}  Qg6 {[%clk 0:00:03]} 44. Qxd7+ {[%clk 0:00:07]}  Kh6 {[%clk 0:00:03]} 45. Qe7 {[%clk 0:00:06]}  Qg1+ {[%clk 0:00:04]} 46. Kc2 {[%clk 0:00:06]}  Qxf2 {[%clk 0:00:04]} 47. Qg5+ {[%clk 0:00:05]}  Kh7 {[%clk 0:00:05]} 48. d7 {[%clk 0:00:06]}  Qf1 {[%clk 0:00:03]} 49. Bxf1 {[%clk 0:00:04]} 1-0


[Site "https://www.chess.com"]

[Event "Titled Tuesday Blitz June 6 Late 2023"]
[White "Skvortsov, Andrei"]
[Black "Omariev, Maksim"]
[WhiteFideId "24108600"]
[BlackFideId "4193423"]
[WhiteElo "2259"]
[BlackElo "2426"]
[Result "1-0"]
[Round "1"]
[TimeControl "180+2"]
[Date "2023.06.07"]
[WhiteClock "0:00:07"]
[BlackClock "0:00:01"]
[Board "78"]

1. e4 {[%clk 0:02:55]}  c5 {[%clk 0:02:54]} 2. d4 {[%clk 0:02:54]}  cxd4 {[%clk 0:02:54]} 3. Qxd4 {[%clk 0:02:55]}  Nc6 {[%clk 0:02:52]} 4. Qd3 {[%clk 0:02:55]}  g6 {[%clk 0:02:29]} 5. Nf3 {[%clk 0:02:53]}  Bg7 {[%clk 0:02:30]} 6. Nc3 {[%clk 0:02:53]}  d6 {[%clk 0:02:26]} 7. Be2 {[%clk 0:02:53]}  Nf6 {[%clk 0:02:26]} 8. O-O {[%clk 0:02:53]}  O-O {[%clk 0:02:26]} 9. Nd5 {[%clk 0:02:54]}  b6 {[%clk 0:01:53]} 10. Bg5 {[%clk 0:02:49]}  Nd7 {[%clk 0:01:37]} 11. c3 {[%clk 0:02:49]}  Nc5 {[%clk 0:01:28]} 12. Qc2 {[%clk 0:02:46]}  Bb7 {[%clk 0:01:21]} 13. Bb5 {[%clk 0:02:38]}  Re8 {[%clk 0:01:09]} 14. Rad1 {[%clk 0:02:29]}  Qd7 {[%clk 0:01:03]} 15. Nd4 {[%clk 0:02:20]}  Rac8 {[%clk 0:00:55]} 16. Qe2 {[%clk 0:02:11]}  h6 {[%clk 0:00:44]} 17. Bh4 {[%clk 0:02:03]}  Qd8 {[%clk 0:00:22]} 18. e5 {[%clk 0:01:39]}  Bxe5 {[%clk 0:00:13]} 19. Nxc6 {[%clk 0:01:37]}  Bxc6 {[%clk 0:00:13]} 20. Bxc6 {[%clk 0:01:37]}  Rxc6 {[%clk 0:00:13]} 21. f4 {[%clk 0:00:58]}  Bf6 {[%clk 0:00:09]} 22. Nxf6+ {[%clk 0:00:37]}  exf6 {[%clk 0:00:10]} 23. Qf3 {[%clk 0:00:37]}  Rc7 {[%clk 0:00:09]} 24. Qd5 {[%clk 0:00:36]}  Rd7 {[%clk 0:00:06]} 25. Rfe1 {[%clk 0:00:37]}  Re6 {[%clk 0:00:03]} 26. f5 {[%clk 0:00:35]}  Rxe1+ {[%clk 0:00:03]} 27. Rxe1 {[%clk 0:00:35]}  g5 {[%clk 0:00:04]} 28. Bf2 {[%clk 0:00:35]}  Kg7 {[%clk 0:00:05]} 29. Bd4 {[%clk 0:00:34]}  Re7 {[%clk 0:00:04]} 30. Rd1 {[%clk 0:00:35]}  Qe8 {[%clk 0:00:04]} 31. h3 {[%clk 0:00:34]}  Re1+ {[%clk 0:00:04]} 32. Rxe1 {[%clk 0:00:34]}  Qxe1+ {[%clk 0:00:05]} 33. Kh2 {[%clk 0:00:35]}  Qf1 {[%clk 0:00:04]} 34. b4 {[%clk 0:00:32]}  Nd7 {[%clk 0:00:03]} 35. Qxd6 {[%clk 0:00:31]}  Qxf5 {[%clk 0:00:02]} 36. a4 {[%clk 0:00:29]}  Ne5 {[%clk 0:00:02]} 37. Be3 {[%clk 0:00:20]}  Qe4 {[%clk 0:00:02]} 38. Bf2 {[%clk 0:00:19]}  Nd3 {[%clk 0:00:02]} 39. Bg3 {[%clk 0:00:19]}  Ne5 {[%clk 0:00:02]} 40. a5 {[%clk 0:00:19]}  bxa5 {[%clk 0:00:01]} 41. bxa5 {[%clk 0:00:19]}  h5 {[%clk 0:00:02]} 42. Qd2 {[%clk 0:00:11]}  h4 {[%clk 0:00:01]} 43. Bf2 {[%clk 0:00:11]}  Qf5 {[%clk 0:00:01]} 44. Bxa7 {[%clk 0:00:11]}  Nc4 {[%clk 0:00:02]} 45. Qf2 {[%clk 0:00:08]}  Qe5+ {[%clk 0:00:01]} 46. Kg1 {[%clk 0:00:06]}  Qxa5 {[%clk 0:00:01]} 47. Bd4 {[%clk 0:00:07]} 1-0


[Site "https://www.chess.com"]